Cogmind - Beta 16 @@@ ROGUE MODE // 2026.01.14 @ 21:49:47 Player: Tubby Watkins Result: Destroyed by C7-AHW(j) with Overtuned Pulse Rifle Performance ------------- Evolutions (0) 0 Regions Visited (3) 600 Robots Destroyed (20) 100 Value Destroyed (464) 464 Prototype IDs (12) 240 Alien Tech Used (0) 0 Bonus (778) 778 TOTAL SCORE: 2182 Bonus ------- Registered with UFD 300 Met Optimus in HQ 500 Friendly Fire -22 Cogmind --------- Core Integrity 0/250 Matter 157/300 Energy 306/310 System Corruption 5% Temperature Cool (14) Movement Treading (160) Location -7/Scraptown Parts ------- > --- POWER (1) -------- Fission Core > --- PROPULSION (2) --- Light Treads (fused) Light Treads > --- UTILITY (2) ------ Small Storage Unit Layered Light Armor Plating > --- WEAPON (2) ------- Heavy Machine Gun (fused) > --- INVENTORY (8) ---- Light Treads Light Humpback Large Matter Pod (150) Structural Scanner Terrain Scan Processor Hardened Light Armor Plating Peak State ------------ > --- POWER ------------ Fission Core > --- PROPULSION ------- Light Treads Light Treads > --- UTILITY ---------- Small Storage Unit Layered Light Armor Plating > --- WEAPON ----------- Heavy Machine Gun > --- INVENTORY -------- Light Angular Momentum Engine Light Treads Improved Aluminum Leg Light Humpback Large Matter Pod Hardened Light Armor Plating [Rating: 18] Favorites ----------- Power Ion Engine Engine Ion Engine Power Core Fission Core Propulsion Light Treads Treads Light Treads Utility Small Storage Unit Device Seismic Detector Storage Small Storage Unit Protection Makeshift Thermal Plating Weapon Heavy Machine Gun Energy Gun Small Laser Ballistic Gun Heavy Machine Gun Ballistic Cannon Battle Cannon Launcher Grenade Launcher Special Weapon Multitool Build | -11 -10 -10 -7 ------- Run | Yrd Mat Sub Scr Slots Evolved . | . . . . Power . | . . . . Propulsion . | . . . . Utility . | . . . . Weapon . | . . . . Parts Attached 24 | 7 6 7 4 Power 4 | 1 . 1 2 Engine 3 | 1 . 1 1 Core 1 | . . . 1 Reactor . | . . . . Propulsion 3 | 2 . 1 . Treads 3 | 2 . 1 . Leg . | . . . . Wheel . | . . . . Hover . | . . . . Flight . | . . . . Utility 8 | 2 3 2 1 Device 3 | 1 2 . . Storage 1 | 1 . . . Processor . | . . . . Hackware . | . . . . Protection 4 | . 1 2 1 Artifact . | . . . . Weapon 9 | 2 3 3 1 Energy Gun 1 | 1 . . . Energy Cannon . | . . . . Ballistic Gun 5 | 1 2 1 1 Ballistic Cannon 1 | . . 1 . Launcher 1 | . 1 . . Special Weapon 1 | . . 1 . Impact Weapon . | . . . . Slashing Weapon . | . . . . Piercing Weapon . | . . . . Special Melee Weapon . | . . . . Unidentified Prototypes . | . . . . Parts Lost 5 | . . 5 . Power 1 | . . 1 . Propulsion . | . . . . Utility 1 | . . 1 . Weapon 3 | . . 3 . Highest Loss Streak 2 | . . 2 . To Critical Strikes . | . . . . Average Backups 6 | 2 7 6 5 Power . | . 1 . . Propulsion 2 | 1 2 2 1 Utility 2 | . 2 2 3 Weapon . | . 1 . . Tool/Special . | . . . . Unused Backups 8 | . 2 1 5 Power . | . . . . Propulsion 4 | . 2 1 1 Utility 4 | . . . 4 Weapon . | . . . . Tool/Special . | . . . . Average Slot Usage (%) 91 | . 100 95 83 Engine 12 | . 14 14 10 Core 1 | . . . 3 Treads 28 | . 28 28 28 Device 4 | . 13 3 . Storage 14 | . 14 14 14 Protection 8 | . . 7 14 Ballistic Gun 15 | . 25 11 12 Launcher 3 | . 1 12 . Peak Build Rating 18 | 7 9 11 18 Average Rating 11 | 5 7 9 15 On Entrance 5 | . 7 8 8 Avg Prop Armor Cover (%) 20 | . . . 20 Naked Turns . | . . . . Heaviest Build 24 | 14 20 21 24 Greatest Support 40 | 40 40 40 40 Greatest Overweight (x) 7 | 3 . . 7 Average Overweight (x) . | . . . . Largest Inventory Capacity 8 | 8 8 8 8 Average Capacity 7 | 7 8 8 8 Most Carried 8 | 3 8 8 8 Average Carried 6 | 2 7 7 6 Final Capacity 8 | 8 8 8 8 Final Carried 8 | 3 8 6 7 Class Distribution -------------------- 100% | Mutant Dominant Class ---------------- Mutant | -10/Materials Mutant | -10/Subcaves Mutant | -7/Scraptown Resources | -11 -10 -10 -7 ----------- Run | Yrd Mat Sub Scr Matter Collected 1136 | 282 338 366 150 Remotely . | . . . . Salvage Created 343 | 132 55 156 . Parts 26 | 10 3 13 . Haulers Intercepted . | . . . . Recyclers Shooed 1 | 1 . . . Parts Field Recycled . | . . . . Retrieved Matter . | . . . . Parts Self-Destructed 18 | . . 18 . Prevented . | . . . . Parts Restored . | . . . . Kills | -11 -10 -10 -7 ------- Run | Yrd Mat Sub Scr Combat Hostiles Destroyed 16 | . 4 12 . Guns 1 | . 1 . . Cannons 2 | . . 2 . AOE 13 | . 3 10 . Classes Destroyed 6 | 2 3 1 . Tunneler 2 | 2 . . . Recycler 1 | 1 . . . Watcher 1 | . 1 . . Swarmer 7 | . 3 4 . Grunt 2 | . 1 1 . Subdweller 7 | . . 7 . Best Kill Streak 4 | 2 3 4 . Combat Bots Only 4 | . 3 4 . Max Kills in Single Turn 2 | 2 2 2 . Gunslinging . | . . . . Exploded 2 | . 2 2 . Melee . | . . . . Uniques/NPCs Destroyed . | . . . . Combat | -11 -10 -10 -7 -------- Run | Yrd Mat Sub Scr Hostile Shots Fired 128 | . 12 115 1 Missed 51 | . 3 48 . Hits 77 | . 9 67 1 Projectile 77 | . 9 67 1 Critical Strikes 1 | . . 1 . Damage Taken 1085 | . 102 938 45 Core 258 | . 18 220 20 Absorbed by Shields . | . . . . Ignored by Resistances 48 | . . 48 . Regen/Repaired (Parts) 399 | . . . 399 Core Remaining (%) 100 | 100 . . . Volleys Fired 50 | 4 16 30 . Largest 2 | 2 2 1 . Hottest 60 | 60 50 33 . Shots Fired 71 | 8 31 30 2 Gun 37 | 8 27 . 2 Cannon 4 | . . 4 . Launcher 30 | . 4 26 . Special . | . . . . Kinetic 37 | 4 27 4 2 Thermal 4 | 4 . . . Explosive 30 | . 4 26 . Electromagnetic . | . . . . Robot Hit Streak 11 | 5 5 11 2 Robot Miss Streak 5 | 3 5 2 . Penetration Max . | . . . . Secondary Targets . | . . . . Shots Hit Robots 34 | 5 11 16 2 Core Hits 31 | 4 8 19 . Critical Kills . | . . . . Critical Parts Destroyed . | . . . . Critical Strikes . | . . . . Melee Attacks . | . . . . Impact . | . . . . Slashing . | . . . . Piercing . | . . . . Sneak Attacks . | . . . . Combat Hostiles . | . . . . Follow-up Attacks . | . . . . Damage Inflicted 1740 | 73 324 1321 22 Guns 191 | 73 96 . 22 Cannons 50 | . . 50 . Explosions 1499 | . 228 1271 . Melee . | . . . . Ramming . | . . . . Kinetic 210 | 42 96 50 22 Thermal 31 | 31 . . . Explosive 1499 | . 228 1271 . Electromagnetic . | . . . . Impact . | . . . . Slashing . | . . . . Piercing . | . . . . Highest Corruption 5 | . 1 5 5 Average Corruption 3 | . 1 2 5 Corruption Purged . | . . . . Corruption Blocked . | . . . . Effects 75 | . 1 15 59 Message Errors 21 | . 1 6 14 Matter Fused 26 | . . 5 21 Heat Flow Errors 9 | . . 1 8 Energy Discharges 5 | . . 2 3 Parts Fused 2 | . . . 2 Data Loss (minor) 8 | . . 1 7 Data Loss (major) 2 | . . . 2 Misfires 2 | . . . 2 Overload Shots . | . . . . Overflow Damage 19 | . 19 . . Projectiles . | . . . . Explosions 19 | . 19 . . Melee . | . . . . Knockbacks . | . . . . Impact . | . . . . Kinetic . | . . . . Secondary . | . . . . Self-Inflicted Damage 38 | . 22 16 . Shots 2 | . 1 1 . Rammed . | . . . . Targets Rammed . | . . . . Kicked . | . . . . Crushed . | . . . . Highest Temperature 263 | . 3 78 263 Average Temperature 87 | . 2 18 96 Received Heat Transfer 360 | . 24 324 12 Effects 1 | . . . 1 Energy Bleed 1 | . . . 1 Siege Activations . | . . . . Martial Activations . | . . . . Shielding Activations . | . . . . Robots Disrupted . | . . . . Combat Hostiles . | . . . . Robots Corrupted . | . . . . Combat Hostiles . | . . . . Parts Fried . | . . . . Impact Corruptions . | . . . . Robots Melted . | . . . . Combat Hostiles . | . . . . Parts Melted . | . . . . Heat Transferred 75 | 75 . . . Parts Sabotaged . | . . . . Parts Stolen . | . . . . Parts Stripped . | . . . . Power Chain Reactions . | . . . . Alert | -11 -10 -10 -7 ------- Run | Yrd Mat Sub Scr Maximum Alert Level . | . . . . Low Security (%) 100 | 100 100 . . Level 1 . | . . . . Level 2 . | . . . . Level 3 . | . . . . Level 4 . | . . . . Level 5 . | . . . . High Security . | . . . . Max Security . | . . . . Peak Influence 95 | 10 95 . . Initial . | . . . . Average 9 | 1 10 . . Influence Increases 373 | 15 153 205 . Destroy 0b10 Robot/C 180 | . 80 100 . Destroy 0b10 Robot/NC 20 | 15 5 . . Destroy Leader 22 | . 22 . . Successful Hack 2 | . 2 . . Disable Machine 15 | . 15 . . Destroy Structure 29 | . 29 . . Lose Combat Pursuer 105 | . . 105 . Influence Decreases 373 | 15 153 82 123 Entered New Map 123 | . . . 123 Time Decay 230 | 15 153 62 . Lost Part 20 | . . 20 . Squads Dispatched 3 | . 3 . . Investigation 1 | . 1 . . Extermination . | . . . . Reinforcement 2 | . 2 . . Assault . | . . . . Garrison . | . . . . Intercept . | . . . . Searches Triggered . | . . . . Construction Impeded . | . . . . Haulers Reinforced . | . . . . Active Scanning Responses . | . . . . Cargo Convoy Interrupts . | . . . . Stealth | -11 -10 -10 -7 --------- Run | Yrd Mat Sub Scr Distress Signals 2 | . 2 . . Communications Jammed . | . . . . Distress Signals . | . . . . Times Spotted 33 | . 11 20 2 Peak Tracking Total 6 | . 3 6 1 Tactical Retreats 3 | . . 3 . Traps | -11 -10 -10 -7 ------- Run | Yrd Mat Sub Scr Traps Triggered 3 | . 3 . . Indirectly . | . . . . Trap Hack Attempts . | . . . . Triggered . | . . . . Disarmed . | . . . . Reprogrammed . | . . . . Reused . | . . . . Traps Extracted . | . . . . Installed . | . . . . Triggered . | . . . . Machines | -11 -10 -10 -7 ---------- Run | Yrd Mat Sub Scr Machines Disabled 3 | . 1 2 . Max in Single Turn 1 | . 1 1 . Machines Repaired . | . . . . Machines Dismantled . | . . . . Machines Sabotaged . | . . . . Overloaded Fab Kills . | . . . . Hacking | -11 -10 -10 -7 --------- Run | Yrd Mat Sub Scr Machines Accessed 10 | . 4 2 4 Terminals 3 | . 3 . . Fabricators . | . . . . Repair Stations . | . . . . Recycling Units 1 | . 1 . . Scanalyzers . | . . . . Garrison Access . | . . . . Total Hacks 33 | . 6 13 14 Successful 32 | . 5 13 14 Failed 1 | . 1 . . Catastrophic . | . . . . Database Lockouts . | . . . . Manual . | . . . . Terminals 5 | . 5 . . Fabricators . | . . . . Repair Stations . | . . . . Recycling Units 1 | . 1 . . Scanalyzers . | . . . . Garrison Access . | . . . . Terminal Hacks 31 | . 4 13 14 Record 29 | . 3 12 14 Alert Level 1 | . 1 . . Proto ID Catalog 1 | . . 1 . Fabricator Hacks . | . . . . Repair Station Hacks . | . . . . Recycling Unit Hacks 1 | . 1 . . Report Inventory 1 | . 1 . . Scanalyzer . | . . . . Garrison Access Hacks . | . . . . Unauthorized Hacks . | . . . . Terminals . | . . . . Fabricators . | . . . . Repair Stations . | . . . . Recycling Units . | . . . . Scanalyzers . | . . . . Garrison Access . | . . . . Data Cores Recovered . | . . . . Used . | . . . . Hacking Detections 2 | . 2 . . Full Trace Events . | . . . . Feedback Events . | . . . . Feedback Blocked . | . . . . Robot Schematics Acquired . | . . . . Robots Built . | . . . . Authchips . | . . . . Time . | . . . . Total Robot Build Rating . | . . . . Part Schematics Acquired . | . . . . Parts Built . | . . . . Authchips . | . . . . Time . | . . . . Total Part Build Rating . | . . . . Part Studies Acquired . | . . . . Parts Repaired . | . . . . Time . | . . . . Parts Recycled . | . . . . Recycled Matter . | . . . . Retrieved Matter . | . . . . Retrieved Components . | . . . . Parts Scanalyzed . | . . . . Part Schematics Acquired . | . . . . Parts Damaged . | . . . . Bothacking | -11 -10 -10 -7 ------------ Run | Yrd Mat Sub Scr Used RIF Installer . | . . . . Robots Hacked . | . . . . Non-combat . | . . . . Combat . | . . . . Robot Hacks Applied . | . . . . Relay Couplers Released . | . . . . Fabnet Peak Effective % . | . . . . Robots Rewired . | . . . . Allies Hacked . | . . . . Hacks Repelled . | . . . . Allies | -11 -10 -10 -7 -------- Run | Yrd Mat Sub Scr Total Allies . | . . . . Largest Group . | . . . . Highest-Rated Group . | . . . . Highest-Rated Ally . | . . . . Total Orders . | . . . . Ally Attacks . | . . . . Total Damage . | . . . . Kills . | . . . . Allies Corrupted . | . . . . Allies Melted 2 | . . . 2 Intel | -11 -10 -10 -7 ------- Run | Yrd Mat Sub Scr Active Infowar (turns) 1885 | 35 1455 395 . Seismic 1885 | 35 1455 395 . Robot Analysis Total . | . . . . Derelict Logs Recovered 2 | . . 2 . Drone Launches . | . . . . Drone Recoveries . | . . . . Exploration | -11 -10 -10 -7 ------------- Run | Yrd Mat Sub Scr Turns Passed 5595 | 147 1473 1435 2540 Spaces Moved 3247 | 83 780 836 1548 Core 33 | 13 . . 20 Treads 3214 | 70 780 836 1528 Legs . | . . . . Wheels . | . . . . Hover . | . . . . Flight . | . . . . Fastest Speed 50 | 50 160 160 160 Average Speed 161 | 147 160 160 163 Slowest Speed 400 | 200 160 160 400 Overloaded Moves . | . . . . Propulsion Burnouts . | . . . . Robots Hopped . | . . . . Potential Cave-ins . | . . . . Cave-ins Triggered 1 | . . 1 . Exploration Rate (%) 57 | 4 93 44 87 Regions Visited 3 Branch Regions 2 Pre-discovered Areas 1 | . . 1 . Known Exits Taken . | . . . . Unknown Exits Taken 3 | 1 1 1 . Scrap Searched 6 | . . 3 3 Spaces Dug 9 | . 7 2 . Terrain Destroyed 131 | . 27 104 . Melee . | . . . . Projectile . | . . . . AOE 131 | . 27 104 . Terrain Rammed . | . . . . Walls Destroyed . | . . . . Machines Disabled . | . . . . Actions | -11 -10 -10 -7 --------- Run | Yrd Mat Sub Scr Total 3537 | 96 975 902 1564 Wait 175 | . 151 22 2 Move 3244 | 82 779 835 1548 Hop . | . . . . Pick Up 15 | 3 8 2 2 Fast Attach 10 | 7 2 . 1 Attach 4 | . . 3 1 Detach 1 | . . . 1 Swap 22 | . 12 7 3 Drop 12 | . 7 3 2 Fire 50 | 4 16 30 . Melee . | . . . . Ram . | . . . . Kick . | . . . . Crush . | . . . . Escape Stasis . | . . . . Rewire 4 | . . . 4 Trap . | . . . . Miscellaneous . | . . . . Route ------- -11/Scrapyard -10/Materials (discovered 5 exits: [*Mat x2] / [*Min x2] / *Sub) -10/Subcaves (discovered 3 exits: Mat / [*Rec] / *Scr) -7/Scraptown (discovered 1 exit: [*Fac]) History --------- Turn | Location | Event 33 | -11/Scrapyard | Discovered new exit (range 14) 148 | -11/Scrapyard | Entered Materials 149 | -10/Materials | Met a group of wandering Federalists 312 | -10/Materials | Build established: Mutant 885 | -10/Materials | Discovered new exit (range 16) 1108 | -10/Materials | Discovered new exit (range 11) 1375 | -10/Materials | Discovered new exit (range 4) 1482 | -10/Materials | Discovered new exit (range 13) 1520 | -10/Materials | Discovered new exit (range 7) 1621 | -10/Materials | Entered Subcaves 1622 | -10/Subcaves | Continued accompanying wandering Federalists (3) 1622 | -10/Subcaves | Approached by a straggling Scientist 1727 | -10/Subcaves | A swath of the cavern ceiling suddenly collapsed 1733 | -10/Subcaves | Learned location of Zion (-7) 1906 | -10/Subcaves | Visited Clippyterm 1911 | -10/Subcaves | Learned 40 Factory zone layouts 2231 | -10/Subcaves | Visited 4L-MR0's lab 2497 | -10/Subcaves | Shifting Twisted Machinery released Lgt. Humpback 2610 | -10/Subcaves | Identified exit to Materials 2665 | -10/Subcaves | Crushed by falling debris 2665 | -10/Subcaves | Core integrity fell below 50% 3000 | -10/Subcaves | Discovered new exit (range 16) 3007 | -10/Subcaves | Disturbed a concealed Subdweller 3009 | -10/Subcaves | Core integrity fell below 20% 3056 | -10/Subcaves | Entered Scraptown 3416 | -7/Scraptown | Heard Great Nut preacher, LISTEN AND RECITE! 3429 | -7/Scraptown | Visited Assassins FH 3484 | -7/Scraptown | Visited Symbiants 3891 | -7/Scraptown | Visited TADAMA 3965 | -7/Scraptown | Visited UFD Registry 3965 | -7/Scraptown | Registered with UFD as "Metaparser" 4074 | -7/Scraptown | Visited The Evicted 4109 | -7/Scraptown | Visited CR-KLE's Repair Center 4148 | -7/Scraptown | CR-KLE repaired 5 parts 4400 | -7/Scraptown | Discovered new exit (range 7) 4650 | -7/Scraptown | Visited Shadow of the Wyrm 4741 | -7/Scraptown | Visited Chapter 10 4789 | -7/Scraptown | Visited LU-1G1's Boring Crew 4875 | -7/Scraptown | Visited Junk Repository 5237 | -7/Scraptown | Visited Scrapoid Research Area 5308 | -7/Scraptown | Visited Supply Room 5455 | -7/Scraptown | Met Optimus 5455 | -7/Scraptown | Accepted into 0bPrime 5546 | -7/Scraptown | Visited A0-MCA Data Center 5556 | -7/Scraptown | Given an A- rating by A0-MCA 5558 | -7/Scraptown | Civil war broke out across Scraptown 5596 | -7/Scraptown | Destroyed by C7-AHW(j) with Overtuned Pulse Rifle Last Messages --------------- Metaparser, they can't stop us now. Get out of here and do your job, we'll deal with this." 05562_ Optimus: "No holds barred, if they're hostile, they are an enemy of the people and we must shoot to kill. Collateral damage is to be expected!" 05564_ Slug penetrates Machine. 05564_ Machine disabled. 05564_ Slug penetrates A0-MCA. 05564_ A0-MCA suffers critical hit (Destroy). 05564_ A0-MCA destroyed. 05564_ Slug penetrates 6E-J0I(j). 05567_ Machine disabled. 05569_ GE3XF7GESZTW5YF7H PMG<79P>UZ> 05569_ 6E-J0I(j) destroyed. 05571_ Acquired 25 matter. 05571_ 98-JD2(E) Ovr. Treads ripped off. 05571_ 3S-IEL(r) suffers critical hit (Destroy). 05589_ 79%X3BRIKRY5 05591_ IG-BCJ(p) destroyed. Map ----- +----------------------------------------------------+ | ?????????????????????????????????????????????????? | | ?????????????????????????????????????????????????? | | ?????????????????????????????????????????????????? | | ?????????????????????????????????????????????????? | | ?????????????????????????????????????????????????? | | ??????????????????????????????? =????????????????? | | ???????????????????????????????[!????????????????? | | ???????????????????????????????[!????????????????? | | ??????????????????????????????# ????????????????? | | ??????????????????????????????# ????????????????? | | ??????????????????????????????# #???????????????? | | ??????????????????????????????# #???????????????? | | ??????????????????????????????# #???????????????? | | ??????????????????????????????# #???????????????? | | ??????????????????????????????# #? ?????????????? | | ??????????????????????????"???# #? ?????????????? | | ??????????????????????????"???# #? "????????????? | | ????????????????????? ?###"???# #" """??????????? | | ??????????????????????"""""???# #" ???????????? | | ??????????????????????? ???# #"" ???????????? | | ???????????????????????? ???# # ????????????? | | ????????????? #?????????# #???# ## #????????????? | | ????????##### #?######### ##### ## #############? | | ?????"""""""" """""" ""["""" "" "##""""""""""? | | ???? =!%* "## """""""""# | | ???? j [@ "## """""""""# | | ????? !! ## " """"# | | ???? = =## """"# | | ??? !* """"# | | "???"""""""""""""""""""""""" ## """""""""# | | "?????"""""""""""""""""""""" "## ""!""""""# | | ""###### ################"" "## """""""""? | | ""# ##????????#"" "############? | | ""# X"#????????#"" "##*=""!!#???? | | ""# "" "" ##????????#"" "## "" !#???? | | ""# "" "" X"#??????###"" "## ! "#???? | | ""# " " ######### #"" "## !""#???? | | "" "" [ !""#???? | | "" "" "## ///#???? | | ""# " " ######### #"" "## !"!"#???? | | ""# "" "" ""#??????###"" "## "!""#???? | | ""# "" "" ##????????#"" "############# | | ""# X"#????????#"" "## """ """ | | ""# ##????????#"" "## " """"" | | ""###### ################"" "## """ | | """""""""""""""""""""""""""" "## | | """""""""""""""""""""""""""" " | | "## "" | | "## """ " | | "## """"" "" | +----------------------------------------------------+ Best States ------------- Heat Dissipation 25 Energy Generation 18 Energy Capacity 310 Matter Stores 300 Matter Capacity 300 Sight Range 16 Terrain Scan Density 10 Armor Coverage 150 Resistance: TH 10 Evasion (%) 40 Recoil Reduction 2 Item Schematics ----------------- None Robot Schematics ------------------ None Fabricated ------------ Nothing Repaired ---------- Nothing Studied --------- None Alien Tech Used ----------------- None Achievements -------------- Civilization 2243 Librarian Link The Feds Strength In Numbers Challenges ------------ None Game ------ Seed TowerSniperDirector Manual? 0 Play Time 00:59:18 Cumulative 6.0 hours Start 2026.01.14 @ 20:32:14 End 2026.01.14 @ 21:49:47 Sessions 1 Manual Loads 0 Difficulty Rogue Special Mode None Game No. 10 Rogue 10 Adventurer 0 Explorer 0 Win Type - Total 0 Types 0/0/0/0/0/0/0/0/0/0 Lore% 6 Gallery% 9 Achievement% 9 Wizard Run 0 Options --------- Layout 0 ASCII 1 Keyboard 1 Movement Vi Keybinds 0 Fullscreen 1 Font 20/X11 Map View 66x50 Zoom Use 0% Tactical HUD 1 Map Filters NONE Filters NONE Steam 1 RUN: baf2f190-0686-42ad-b5f5-6725c1d26360